bitfinex/quotes_SOLUSD_20251118
["timestamp","ask_amount","ask_price","bid_price","bid_amount"]
[1763436514028,0.2,132.97,132.96,18.07528122]
[1763436514436,7.42645353,133.02,132.97,9.78882769]
[1763436514729,7.42645353,133.02,132.98,0.66]
[1763436515322,7.42645353,133.01,133.0,9.78882769]
[1763436515525,7.42645353,133.01,132.99,15.05290706]
[1763436515526,18.12096,133.0,132.99,15.05290706]
[1763436515858,18.12096,132.99,132.93,9.78882769]
[1763436516029,18.81096,132.99,132.95,15.05290706]
[1763436516224,0.69,132.98,132.95,15.05290706]
[1763436516620,0.69,132.98,132.92,0.66]
[1763436516825,0.69,132.98,132.94,9.78882769]
[1763436517159,18.12096,132.96,132.94,9.78882769]
[1763436517454,0.69,133.01,132.95,25.50173475]
[1763436517642,7.42645353,132.99,132.96,9.78882769]
[1763436517848,7.42645353,132.98,132.96,9.78882769]
[1763436518055,25.54741353,132.99,132.94,9.78882769]
[1763436518360,7.42645353,132.99,132.97,15.05290706]
[1763436518570,7.42645353,132.98,132.97,15.05290706]
[1763436518753,0.69,132.98,132.97,15.05290706]
[1763436519072,0.69,132.98,132.94,9.78882769]
[1763436519073,18.12096,132.95,132.94,9.78882769]
[1763436519260,18.12096,132.95,132.9,7.42645353]
[1763436519434,25.54741353,132.95,132.93,9.78882769]
[1763436519637,25.54741353,132.95,132.92,9.78882769]
[1763436519638,7.42645353,132.94,132.92,9.78882769]
[1763436520262,7.42645353,132.94,132.93,17.21528122]
[1763436520658,7.42645353,132.95,132.93,17.21528122]
[1763436520974,7.42645353,132.95,132.87,8.39427694]
[1763436520975,8.11645353,132.94,132.84,8.08645353]
[1763436521262,18.12096,132.9,132.87,17.21528122]
[1763436521560,7.42645353,132.88,132.83,9.78882769]
[1763436521773,7.42645353,132.85,132.82,17.21528122]
[1763436522143,7.42645353,132.85,132.83,9.78882769]
[1763436522345,7.42645353,132.84,132.83,10.48882769]
[1763436522550,7.42645353,132.85,132.83,9.78882769]
[1763436523339,7.42645353,132.85,132.83,10.48882769]
[1763436523537,7.42645353,132.85,132.83,9.78882769]
[1763436524232,7.42645353,132.85,132.83,10.48882769]
[1763436524437,7.42645353,132.85,132.83,0.7]
[1763436524636,7.42645353,132.85,132.84,0.7]
[1763436524877,7.42645353,132.85,132.83,9.78882769]
[1763436525047,7.42645353,132.85,132.82,9.78882769]
[1763436525242,7.42645353,132.84,132.83,27.00410891]
[1763436525443,7.42645353,132.84,132.83,9.78882769]
[1763436525840,8.09645353,132.84,132.83,17.40096]
[1763436526057,8.09645353,132.84,132.8,0.1]
[1763436526058,18.12096,132.81,132.8,0.1]
[1763436526365,25.54741353,132.81,132.8,0.1]
[1763436527037,18.12096,132.81,132.8,0.1]
[1763436527239,7.42645353,132.82,132.81,9.78882769]
[1763436527467,0.67,132.87,132.81,9.78882769]
[1763436527768,7.42645353,132.82,132.81,9.78882769]
[1763436527969,7.42645353,132.82,132.8,0.1]
[1763436528173,7.42645353,132.81,132.8,0.1]
[1763436529363,18.12096,132.81,132.8,10.58882769]
[1763436529540,25.54741353,132.81,132.8,10.58882769]
[1763436529740,25.54741353,132.81,132.8,9.88882769]
[1763436530572,26.21741353,132.81,132.8,9.88882769]
[1763436530878,26.21741353,132.81,132.8,0.1]
[1763436531267,8.09645353,132.81,132.8,0.1]
[1763436532268,18.12096,132.78,132.77,0.1]
[1763436532473,25.54741353,132.78,132.77,0.1]
[1763436532662,26.21741353,132.78,132.77,0.1]
[1763436533174,26.21741353,132.78,132.75,0.1]
[1763436533487,25.54741353,132.76,132.75,0.1]
[1763436535062,8.08645353,132.76,132.75,0.1]
[1763436536168,0.66,132.79,132.75,0.1]
[1763436536384,7.42645353,132.76,132.75,0.1]
[1763436536758,0.66,132.78,132.75,0.1]
[1763436536980,7.42645353,132.76,132.75,0.1]
[1763436537990,18.12096,132.81,132.76,9.78882769]
[1763436537991,18.78096,132.81,132.76,9.78882769]
[1763436538164,7.42645353,132.78,132.77,10.48882769]
[1763436538785,7.42645353,132.78,132.77,17.21528122]
[1763436539089,7.42645353,132.79,132.78,9.78882769]
[1763436539486,7.42645353,132.79,132.76,9.78882769]
[1763436539787,7.42645353,132.78,132.77,9.78882769]
[1763436540089,7.42645353,132.78,132.76,9.78882769]
[1763436540294,7.42645353,132.78,132.77,9.78882769]
[1763436540472,18.78096,132.81,132.77,9.78882769]
[1763436540670,7.42645353,132.78,132.77,9.78882769]
[1763436540870,11.54731336,132.78,132.77,9.78882769]
[1763436541187,11.54731336,132.78,132.77,20.27765538]
[1763436541606,11.54731336,132.78,132.75,0.1]
[1763436541607,18.12096,132.76,132.75,0.1]
[1763436541891,18.12096,132.76,132.75,18.22096]
[1763436542100,29.66827336,132.76,132.75,18.22096]
[1763436542471,0.66,132.8,132.76,9.78882769]
[1763436542777,0.66,132.85,132.77,10.48882769]
[1763436542992,0.66,132.85,132.78,9.78882769]
[1763436543167,0.66,132.87,132.78,10.48882769]
[1763436543381,11.54731336,132.85,132.8,9.78882769]
[1763436543594,11.54731336,132.85,132.8,21.33614105]
[1763436543890,18.12096,132.83,132.82,9.78882769]
[1763436544264,11.54731336,132.84,132.82,12.24731336]
[1763436544581,11.54731336,132.83,132.82,21.33614105]
[1763436544768,11.54731336,132.83,132.82,9.78882769]
[1763436545571,12.20731336,132.83,132.77,9.78882769]
[1763436545766,0.66,132.85,132.8,18.12096]
[1763436545983,11.54731336,132.81,132.8,27.90978769]
[1763436546593,29.66827336,132.83,132.81,9.78882769]
[1763436546798,29.66827336,132.83,132.81,10.48882769]
[1763436546992,29.66827336,132.83,132.81,9.78882769]
[1763436547196,11.54731336,132.82,132.81,9.78882769]
[1763436548178,11.54731336,132.82,132.81,10.48882769]
[1763436548370,0.66,132.86,132.81,10.48882769]
[1763436548588,11.54731336,132.82,132.81,9.78882769]
[1763436548774,11.54731336,132.82,132.81,10.48882769]
[1763436549124,18.12096,132.87,132.81,28.60978769]
[1763436549475,0.66,132.92,132.83,11.54731336]
[1763436549681,0.66,132.96,132.85,9.78882769]
[1763436549900,11.54731336,132.89,132.85,9.78882769]
[1763436550102,11.54731336,132.89,132.86,11.54731336]
[1763436550271,18.12096,132.9,132.87,9.78882769]
[1763436550471,11.54731336,132.88,132.86,11.54731336]
[1763436550677,11.54731336,132.87,132.86,21.33614105]
[1763436551889,18.12096,132.9,132.86,21.33614105]
[1763436552089,11.54731336,132.87,132.86,21.33614105]
[1763436552504,11.54731336,132.88,132.86,22.05614105]
[1763436552804,0.66,132.96,132.87,10.50882769]
[1763436553010,11.54731336,132.9,132.87,10.50882769]
[1763436553206,11.54731336,132.91,132.88,10.50882769]
[1763436553703,11.54731336,132.91,132.9,9.78882769]
[1763436554691,11.54731336,132.91,132.87,9.78882769]
[1763436554891,11.54731336,132.89,132.87,0.72]
[1763436555095,11.54731336,132.88,132.86,9.78882769]
[1763436555304,11.54731336,132.88,132.87,9.78882769]
[1763436556083,11.54731336,132.88,132.87,10.50882769]
[1763436556280,11.54731336,132.9,132.88,9.78882769]
[1763436556481,29.66827336,132.9,132.88,10.50882769]
[1763436556703,11.54731336,132.91,132.9,9.78882769]
[1763436556909,11.54731336,132.92,132.9,9.78882769]
[1763436557097,11.54731336,132.91,132.9,9.78882769]
[1763436557888,11.54731336,132.92,132.9,10.50882769]
[1763436558093,11.54731336,132.91,132.9,9.78882769]
[1763436558715,11.54731336,132.92,132.9,10.50882769]
[1763436559210,11.54731336,132.91,132.9,9.78882769]
[1763436559392,11.54731336,132.91,132.9,10.44882769]
[1763436559796,11.54731336,132.92,132.9,10.44882769]
[1763436559988,11.54731336,132.92,132.9,9.78882769]
[1763436560414,29.66827336,132.91,132.87,9.78882769]
[1763436560616,29.66827336,132.88,132.87,27.90978769]
[1763436561297,11.54731336,132.88,132.86,9.78882769]
[1763436561496,6.6980733,132.97,132.86,9.78882769]
[1763436561696,11.54731336,132.9,132.88,9.78882769]
[1763436561894,11.54731336,132.9,132.88,10.44882769]
[1763436562097,11.54731336,132.9,132.89,10.44882769]
[1763436564024,0.2,132.97,132.9,9.78882769]
[1763436564193,11.54731336,132.93,132.91,8.38656577]
[1763436564399,11.54731336,132.93,132.91,10.44882769]
[1763436564720,11.54731336,132.92,132.89,8.38656577]
[1763436564908,0.66,132.95,132.9,9.78882769]
[1763436565303,0.2,132.97,132.91,0.66]
[1763436565304,18.12096,132.96,132.91,0.66]
[1763436565500,18.12096,132.96,132.9,9.78882769]
[1763436566020,11.54731336,132.91,132.9,9.78882769]
[1763436566806,11.54731336,132.91,132.88,9.78882769]
[1763436567120,11.54731336,132.9,132.88,10.44882769]
[1763436567815,0.66,132.94,132.88,10.44882769]
[1763436568018,11.54731336,132.9,132.88,10.44882769]
[1763436568427,11.54731336,132.89,132.88,9.78882769]
[1763436568723,11.54731336,132.89,132.85,9.04656577]
[1763436568724,11.54731336,132.89,132.86,9.78882769]
[1763436568905,11.54731336,132.88,132.86,10.44882769]
[1763436569502,11.54731336,132.88,132.87,10.44882769]
[1763436569697,11.54731336,132.89,132.87,10.44882769]
[1763436570399,0.66,132.92,132.87,10.44882769]
[1763436570600,11.54731336,132.89,132.87,10.44882769]
[1763436572111,0.66,132.95,132.88,10.44882769]
[1763436572434,11.54731336,132.91,132.88,28.56978769]
[1763436572806,0.66,132.95,132.9,9.78882769]
[1763436573007,11.54731336,132.91,132.9,9.78882769]
[1763436574105,11.54731336,132.91,132.87,0.66]
[1763436574426,11.54731336,132.9,132.88,9.78882769]
[1763436574817,11.54731336,132.9,132.88,10.44882769]
[1763436575722,11.54731336,132.89,132.88,10.44882769]
[1763436576117,11.54731336,132.9,132.88,10.44882769]
[1763436577936,11.54731336,132.91,132.89,0.66]
[1763436578133,11.54731336,132.91,132.89,18.78096]
[1763436578630,11.54731336,132.91,132.9,0.66]
[1763436579020,11.54731336,132.91,132.88,0.66]
[1763436579323,11.54731336,132.9,132.87,27.90978769]
[1763436579514,11.54731336,132.89,132.87,27.90978769]
[1763436579832,11.54731336,132.88,132.85,8.38656577]
[1763436580136,11.54731336,132.87,132.86,28.56978769]
[1763436580327,11.54731336,132.87,132.85,8.38656577]
[1763436580328,11.54731336,132.87,132.85,9.78882769]
[1763436581011,18.12096,132.84,132.83,9.78882769]
[1763436581207,11.54731336,132.85,132.83,18.83539346]
[1763436581433,18.12096,132.86,132.85,9.78882769]
[1763436581434,29.66827336,132.86,132.85,9.78882769]
[1763436581730,29.66827336,132.86,132.83,18.88539346]
[1763436582419,0.66,132.91,132.84,18.88539346]
[1763436582625,11.54731336,132.87,132.84,18.88539346]
[1763436582835,11.54731336,132.87,132.85,8.38656577]
[1763436583018,11.54731336,132.87,132.85,9.09656577]
[1763436583740,11.54731336,132.88,132.87,9.78882769]
[1763436585111,12.20731336,132.88,132.87,9.78882769]
[1763436585313,11.54731336,132.88,132.87,9.78882769]
[1763436586328,12.20731336,132.88,132.86,8.38656577]
[1763436586514,11.54731336,132.87,132.85,18.17539346]
[1763436586715,11.54731336,132.87,132.85,18.88539346]
[1763436586716,11.54731336,132.86,132.85,18.88539346]
[1763436586948,29.66827336,132.87,132.86,10.49882769]
[1763436587248,18.12096,132.87,132.86,23.08590296]
[1763436587427,18.12096,132.87,132.86,10.49882769]
[1763436587811,18.12096,132.87,132.86,28.61978769]
[1763436588211,18.12096,132.87,132.86,41.20686296]
[1763436588739,18.12096,132.87,132.86,28.61978769]
[1763436588922,18.12096,132.87,132.86,41.20686296]
[1763436589446,11.54731336,132.88,132.86,41.20686296]
[1763436589636,11.54731336,132.88,132.87,8.44704176]
[1763436590450,11.54731336,132.88,132.86,41.20686296]
[1763436590657,11.54731336,132.88,132.87,10.49882769]
[1763436590972,0.2,132.97,132.87,9.78882769]
[1763436591154,11.54731336,132.89,132.88,8.44999204]
[1763436591344,18.12096,132.95,132.88,9.78882769]
[1763436591544,11.54731336,132.89,132.88,40.49686296]
[1763436591941,29.66827336,132.9,132.88,28.61978769]
[1763436592259,29.66827336,132.9,132.89,12.6795638]
[1763436592847,29.66827336,132.9,132.89,22.46839149]
[1763436593528,29.66827336,132.9,132.89,9.78882769]
[1763436593856,29.66827336,132.9,132.89,18.25200083]
[1763436594241,29.66827336,132.9,132.89,9.78882769]
[1763436594648,29.66827336,132.9,132.89,22.46839149]
[1763436594845,23.75462672,132.9,132.89,8.46842424]
[1763436595063,23.75462672,132.9,132.88,8.46842424]
[1763436595236,12.20731336,132.89,132.88,8.46842424]
[1763436595434,12.20731336,132.89,132.87,8.46842424]
[1763436595758,18.12096,132.85,132.82,8.46842424]
[1763436595941,11.54731336,132.83,132.81,8.46842424]
[1763436596264,18.12096,132.79,132.76,8.46842424]
[1763436596432,29.66827336,132.77,132.76,8.46842424]
[1763436596868,18.12096,132.77,132.76,8.46842424]
[1763436597081,29.66827336,132.77,132.75,8.56842424]
[1763436597236,12.20731336,132.76,132.75,0.1]
[1763436598035,0.06468832,132.76,132.75,0.1]
[1763436598232,11.61200168,132.76,132.75,0.1]
[1763436598964,18.12096,132.77,132.75,0.1]
[1763436599138,11.54731336,132.76,132.75,0.1]
[1763436600169,11.60731336,132.8,132.75,0.1]
[1763436600336,11.54731336,132.76,132.75,0.1]
[1763436600541,18.12096,132.73,132.69,0.1]
[1763436600885,18.12096,132.67,132.66,0.1]
[1763436601172,18.12096,132.67,132.66,0.81]
[1763436601331,29.66827336,132.67,132.63,0.1]
[1763436601536,18.12096,132.61,132.54,0.71]
[1763436601761,11.54731336,132.55,132.54,0.71]
[1763436601972,2.0,132.65,132.52,1.93593088]
[1763436602147,11.54731336,132.53,132.52,1.93593088]
[1763436602461,18.12096,132.57,132.53,0.71]
[1763436602662,18.12096,132.62,132.53,0.71]
[1763436602975,18.12096,132.58,132.52,1.93593088]
[1763436603132,2.0,132.65,132.53,0.71]
[1763436603331,7.48563212,132.55,132.53,0.71]
[1763436603555,18.12096,132.63,132.53,0.71]
[1763436603760,7.48563212,132.58,132.53,8.19563212]
[1763436603956,7.48563212,132.66,132.54,9.78882769]
[1763436604135,12.38320344,132.93,132.54,9.78882769]
[1763436604136,18.12096,132.63,132.56,9.78882769]
[1763436604344,7.48563212,132.61,132.56,9.78882769]
[1763436604539,18.12096,132.59,132.58,9.78882769]
[1763436604740,25.60659212,132.59,132.58,9.78882769]
[1763436604941,9.48563212,132.66,132.53,7.48563212]
[1763436604942,18.12096,132.63,132.53,7.48563212]
[1763436605244,7.48563212,132.64,132.59,17.27445981]
[1763436605453,2.0,132.71,132.59,17.27445981]
[1763436605658,2.0,132.71,132.58,10.49882769]
[1763436605659,7.48563212,132.6,132.58,9.78882769]
[1763436605850,18.12096,132.63,132.59,9.78882769]
[1763436606045,7.48563212,132.6,132.57,7.48563212]
[1763436606364,25.60659212,132.58,132.52,2.64593088]
[1763436606565,18.12096,132.58,132.52,9.421563]
[1763436606865,7.48563212,132.54,132.53,0.71]
[1763436607075,7.48563212,132.54,132.52,1.93593088]
[1763436607273,7.48563212,132.53,132.52,1.93593088]
[1763436607572,25.60659212,132.53,132.52,1.93593088]
[1763436607939,18.12096,132.63,132.52,2.64593088]
[1763436608170,7.48563212,132.58,132.54,9.78882769]
[1763436608345,2.0,132.65,132.54,9.78882769]
[1763436608346,7.48563212,132.57,132.54,9.78882769]
[1763436608672,2.0,132.65,132.54,9.78882769]
[1763436608673,7.48563212,132.65,132.56,17.27445981]
[1763436608851,9.48563212,132.75,132.61,9.78882769]
[1763436609055,9.48563212,132.75,132.65,9.78882769]
[1763436609056,7.48563212,132.75,132.65,9.78882769]
[1763436609260,7.48563212,132.68,132.63,17.27445981]
[1763436609476,18.12096,132.71,132.58,0.71]
[1763436609477,7.48563212,132.64,132.58,0.71]
[1763436609770,10.78659527,132.72,132.59,9.78882769]
[1763436609949,2.0,132.72,132.61,9.78882769]
[1763436610142,7.48563212,132.65,132.61,9.78882769]
[1763436610342,7.48563212,132.65,132.63,9.78882769]
[1763436610778,8.31022703,132.76,132.65,9.78882769]
[1763436610948,74.74459262,132.84,132.65,9.78882769]
[1763436610949,7.48563212,132.71,132.65,9.78882769]
[1763436611147,2.0,132.8,132.67,17.27445981]
[1763436611450,7.48563212,132.73,132.7,9.78882769]
[1763436611653,7.48563212,132.72,132.7,9.78882769]
[1763436611949,18.12096,132.69,132.68,18.12096]
[1763436612153,18.12096,132.72,132.66,9.78882769]
[1763436612348,7.48563212,132.7,132.66,9.78882769]
[1763436612659,7.48563212,132.73,132.68,9.78882769]
[1763436612872,7.48563212,132.84,132.7,9.78882769]
[1763436612873,7.48563212,132.74,132.7,9.78882769]
[1763436613054,25.60659212,132.74,132.7,9.78882769]
[1763436613248,7.48563212,132.73,132.72,9.78882769]
[1763436613455,2.0,132.8,132.72,9.78882769]
[1763436613688,2.0,132.8,132.7,0.7]
[1763436613689,7.48563212,132.73,132.7,0.7]
[1763436613894,18.12096,132.7,132.66,0.7]
[1763436614056,7.48563212,132.69,132.67,9.78882769]
[1763436614377,7.48563212,132.68,132.66,14.97126424]
[1763436614686,18.12096,132.72,132.66,0.7]
[1763436614886,7.48563212,132.68,132.67,9.78882769]
[1763436615078,18.12096,132.72,132.67,9.78882769]
[1763436615079,7.48563212,132.7,132.67,9.78882769]
[1763436615257,2.0,132.8,132.69,9.78882769]
[1763436615572,7.48563212,132.7,132.66,10.48882769]
[1763436615757,18.12096,132.72,132.65,9.78882769]
[1763436615955,7.48563212,132.68,132.66,9.78882769]
[1763436616349,7.48563212,132.69,132.67,0.7]
[1763436616690,7.48563212,132.69,132.68,9.78882769]
[1763436616975,7.48563212,132.7,132.68,9.78882769]
[1763436617281,18.12096,132.72,132.68,0.7]
[1763436617451,7.48563212,132.7,132.68,0.7]
[1763436617867,7.48563212,132.71,132.68,0.7]
[1763436618357,18.12096,132.78,132.68,0.7]
[1763436618358,7.48563212,132.72,132.68,0.7]
[1763436618765,18.12096,132.72,132.68,8.18563212]
[1763436618966,9.48563212,132.84,132.71,7.48563212]
[1763436619169,9.48563212,132.84,132.66,25.60659212]
[1763436619170,7.48563212,132.79,132.73,17.27445981]
[1763436619368,7.48563212,132.76,132.73,9.78882769]
[1763436619566,6.3298287,132.83,132.71,17.27445981]
[1763436619871,7.48563212,132.76,132.73,0.7]
[1763436620402,7.48563212,132.77,132.73,10.48882769]
[1763436620620,7.48563212,132.81,132.76,7.48563212]
[1763436620776,7.48563212,132.84,132.74,0.7]
[1763436620980,0.2,132.88,132.79,9.78882769]
[1763436621193,7.48563212,132.84,132.8,0.7]
[1763436621396,7.48563212,132.81,132.76,0.7]
[1763436621604,7.48563212,132.79,132.76,10.48882769]
[1763436621806,7.48563212,132.77,132.76,9.78882769]
[1763436621985,25.60659212,132.79,132.74,9.78882769]
[1763436622183,25.60659212,132.79,132.77,0.7]
[1763436622585,18.12096,132.81,132.77,0.7]
[1763436622804,7.48563212,132.78,132.77,0.7]
[1763436623310,7.48563212,132.78,132.76,9.78882769]
[1763436623509,7.48563212,132.77,132.74,10.48882769]
[1763436623699,18.12096,132.77,132.74,0.7]
[1763436623893,18.12096,132.77,132.75,0.7]
[1763436624259,18.12096,132.77,132.65,18.12096]
[1763436624260,18.12096,132.74,132.7,0.7]
[1763436624459,7.48563212,132.71,132.68,9.78882769]
[1763436624759,25.60659212,132.71,132.69,9.78882769]
[1763436624946,18.12096,132.8,132.7,7.48563212]
[1763436625132,18.12096,132.8,132.72,17.27445981]
[1763436625347,7.48563212,132.77,132.72,9.78882769]
[1763436625563,7.48563212,132.77,132.73,0.7]
[1763436625564,7.48563212,132.76,132.73,0.7]
[1763436625845,7.48563212,132.74,132.69,10.48882769]
[1763436626018,7.48563212,132.73,132.7,9.78882769]
[1763436626218,7.48563212,132.73,132.7,10.48882769]
[1763436626422,7.48563212,132.73,132.71,0.7]
[1763436627056,18.12096,132.74,132.71,0.7]
[1763436627226,7.48563212,132.72,132.7,9.78882769]
[1763436627427,25.60659212,132.71,132.67,9.78882769]
[1763436627657,7.48563212,132.7,132.67,9.78882769]
[1763436627982,2.0,132.79,132.69,9.78882769]
[1763436628158,7.48563212,132.73,132.69,9.78882769]
[1763436628328,7.48563212,132.73,132.7,0.7]
[1763436628530,7.48563212,132.73,132.66,9.78882769]
[1763436628531,7.48563212,132.71,132.66,9.78882769]
[1763436628833,7.48563212,132.69,132.67,0.7]
[1763436629345,37.79339729,132.81,132.67,0.7]
[1763436629346,9.48563212,132.84,132.68,17.27445981]
[1763436629543,7.48563212,132.82,132.77,7.48563212]
[1763436629743,7.48563212,132.85,132.8,17.27445981]
[1763436630053,7.48563212,132.85,132.78,0.7]
[1763436630242,7.48563212,132.83,132.78,0.7]
[1763436630449,7.48563212,132.83,132.79,9.78882769]
[1763436630952,7.48563212,132.8,132.75,9.78882769]
[1763436631253,7.48563212,132.76,132.68,17.27445981]
[1763436631436,18.12096,132.78,132.72,9.78882769]
[1763436631643,7.48563212,132.74,132.72,9.78882769]
[1763436631841,7.48563212,132.73,132.71,0.7]
[1763436632044,7.48563212,132.72,132.69,9.78882769]
[1763436632247,7.48563212,132.7,132.69,9.78882769]
[1763436632641,7.48563212,132.7,132.68,0.7]
[1763436633786,7.48563212,132.69,132.62,7.48563212]
[1763436633932,7.48563212,132.69,132.61,9.78882769]
[1763436633933,7.48563212,132.63,132.59,0.7]
[1763436634143,18.12096,132.66,132.59,0.7]
[1763436634144,7.48563212,132.62,132.59,0.7]
[1763436634337,7.48563212,132.61,132.59,0.7]
[1763436634638,7.48563212,132.6,132.56,0.7]
[1763436634958,7.48563212,132.57,132.53,0.7]
[1763436635163,7.48563212,132.54,132.52,1.93593088]
[1763436635338,7.48563212,132.53,132.52,1.93593088]
[1763436635538,18.12096,132.55,132.52,2.63593088]
[1763436635539,7.48563212,132.54,132.52,2.63593088]
[1763436636660,7.48563212,132.54,132.53,9.78882769]
[1763436636831,7.48563212,132.54,132.52,1.93593088]
[1763436637037,7.48563212,132.53,132.52,1.93593088]
[1763436637440,7.48563212,132.53,132.44,0.7]
[1763436637642,7.48563212,132.45,132.42,0.1]
[1763436638063,7.48563212,132.44,132.42,0.8]
[1763436638360,18.12096,132.48,132.42,0.1]
[1763436638361,7.48563212,132.43,132.42,0.1]
[1763436639461,18.12096,132.45,132.42,0.1]
[1763436639648,2.0,132.57,132.43,8.18563212]
[1763436639843,2.0,132.57,132.44,17.27445981]
[1763436639844,7.48563212,132.5,132.44,17.27445981]
[1763436640043,7.48563212,132.57,132.42,9.88882769]
[1763436640044,7.48563212,132.45,132.42,9.88882769]
[1763436640344,7.48563212,132.44,132.42,9.88882769]
[1763436640959,7.48563212,132.44,132.42,0.1]
[1763436641343,2.0,132.51,132.42,0.8]
[1763436641539,18.12096,132.45,132.42,0.1]
[1763436641767,25.60659212,132.43,132.42,0.1]
[1763436642643,7.48563212,132.43,132.42,0.1]
[1763436643242,18.12096,132.45,132.42,0.1]
[1763436643452,7.48563212,132.44,132.42,0.1]
[1763436643763,7.48563212,132.45,132.43,9.78882769]
[1763436644468,25.60659212,132.46,132.43,9.78882769]
[1763436644680,7.48563212,132.44,132.42,0.1]
[1763436644838,7.48563212,132.43,132.42,0.1]
[1763436645043,18.12096,132.46,132.42,0.1]
[1763436645262,18.12096,132.43,132.42,0.1]
[1763436645654,25.60659212,132.43,132.42,0.1]
[1763436646165,18.12096,132.45,132.42,0.1]
[1763436646364,25.60659212,132.43,132.42,0.1]
[1763436646540,7.48563212,132.43,132.42,0.1]
[1763436647160,27.60659212,132.48,132.42,0.1]
[1763436647379,7.48563212,132.43,132.42,0.1]
[1763436648264,9.48563212,132.43,132.42,0.1]
[1763436648592,18.12096,132.4,132.38,0.1]
[1763436648760,20.12096,132.43,132.38,0.1]
[1763436648959,7.48563212,132.39,132.38,0.1]
[1763436649165,18.12096,132.43,132.38,0.1]
[1763436649365,7.48563212,132.39,132.38,0.1]
[1763436650200,18.12096,132.43,132.38,0.1]
[1763436650362,18.12096,132.43,132.21,7.48563212]
[1763436650363,9.05660078,132.38,132.27,0.71]
[1763436650562,7.48563212,132.35,132.3,7.48563212]
[1763436650788,9.05660078,132.38,132.3,8.19563212]
[1763436650963,7.48563212,132.36,132.3,0.71]
[1763436651164,9.05660078,132.38,132.31,9.78882769]
[1763436651682,9.05660078,132.38,132.33,9.78882769]
[1763436652291,9.05660078,132.38,132.35,9.78882769]
[1763436652476,9.05660078,132.38,132.37,7.48563212]
[1763436652673,9.05660078,132.38,132.37,9.78882769]
[1763436652976,18.12096,132.35,132.3,0.71]
[1763436653166,25.60659212,132.35,132.21,7.48563212]
[1763436653370,9.05660078,132.38,132.21,7.48563212]
[1763436653371,18.12096,132.32,132.28,0.71]
[1763436653571,18.12096,132.32,132.29,9.78882769]
[1763436653757,7.48563212,132.35,132.28,0.71]
[1763436653758,18.12096,132.35,132.28,0.71]
[1763436653963,25.60659212,132.35,132.28,0.71]
[1763436654188,7.48563212,132.34,132.29,7.48563212]
[1763436654386,9.48563212,132.39,132.26,7.48563212]
[1763436654387,7.48563212,132.31,132.26,7.48563212]
[1763436654585,1.56199307,132.3,132.25,0.71]
[1763436654770,18.12096,132.26,132.24,37.2968524]
[1763436654972,7.48563212,132.26,132.23,1.93593088]
[1763436655276,8.24775182,132.33,132.24,7.48563212]
[1763436655514,9.05660078,132.32,132.27,7.48563212]
[1763436655692,9.05660078,132.32,132.29,7.48563212]
[1763436655870,9.05660078,132.32,132.27,7.48563212]
[1763436656065,9.05660078,132.32,132.24,37.2968524]
[1763436656501,7.48563212,132.29,132.24,45.49248452]
[1763436656803,9.05660078,132.32,132.24,45.49248452]
[1763436656804,16.5422329,132.32,132.27,7.48563212]
[1763436657007,18.12096,132.29,132.26,7.48563212]
[1763436657302,18.12096,132.29,132.28,7.48563212]
[1763436657462,9.05660078,132.32,132.28,7.48563212]
[1763436657807,18.12096,132.3,132.29,8.19563212]
[1763436658036,18.12096,132.3,132.25,0.71]
[1763436658037,18.12096,132.29,132.25,0.71]
[1763436658187,18.12096,132.29,132.25,10.49882769]
[1763436658509,18.12096,132.29,132.26,7.48563212]
[1763436658510,18.12096,132.28,132.26,7.48563212]
[1763436658680,18.12096,132.36,132.26,8.19563212]
[1763436659000,18.12096,132.29,132.26,8.19563212]
[1763436659201,18.12096,132.29,132.27,7.48563212]
[1763436659366,17.27445981,132.39,132.27,7.48563212]
[1763436659367,18.12096,132.38,132.27,0.71]
[1763436659574,18.12096,132.31,132.29,7.48563212]
[1763436659877,18.12096,132.31,132.28,0.71]
[1763436660085,18.12096,132.31,132.24,37.2968524]
[1763436660086,25.60659212,132.31,132.24,37.2968524]
[1763436660298,18.12096,132.31,132.24,37.2968524]
[1763436660591,7.48563212,132.25,132.23,1.93593088]
[1763436660768,18.12096,132.27,132.23,1.93593088]
[1763436660969,18.12096,132.27,132.24,8.19563212]
[1763436661190,18.12096,132.31,132.27,9.78882769]
[1763436661701,29.94252848,132.48,132.31,9.78882769]
[1763436661702,2.0,132.46,132.31,9.78882769]